Cogmind - Beta 15 @@@ ROGUE MODE // 2025.10.04 @ 21:24:29 Player: Charleston314 Result: Destroyed by D-53 Grenadier with Mini Grenade Launcher Performance ------------- Evolutions (0) 0 Regions Visited (4) 800 Robots Destroyed (3) 15 Value Destroyed (30) 30 Prototype IDs (1) 20 Alien Tech Used (0) 0 Bonus (300) 300 TOTAL SCORE: 1165 Bonus ------- Aligned with FarCom 300 Cogmind --------- Core Integrity 0/250 Matter 300/300 Energy 100/100 System Corruption 0% Temperature Cool (0) Movement Walking (90) Location -9/Mines Parts ------- > --- POWER (1) -------- (None) > --- PROPULSION (2) --- Potential Leg Potential Leg > --- UTILITY (2) ------ Large Storage Unit Utility Shielding > --- WEAPON (2) ------- (None) > --- INVENTORY (15) --- Light Treads Aluminum Leg Aluminum Leg Wheel Wheel Peak State ------------ > --- POWER ------------ Ion Engine > --- PROPULSION ------- Potential Leg Potential Leg > --- UTILITY ---------- Small Storage Unit Utility Shielding > --- WEAPON ----------- EM Pulse Gun Medium Laser > --- INVENTORY -------- Light Ion Engine Light Treads Aluminum Leg Aluminum Leg Wheel Wheel Small Laser Assault Rifle [Rating: 25] Favorites ----------- Power Ion Engine Engine Ion Engine Propulsion Aluminum Leg Leg Aluminum Leg Wheel Wheel Utility Small Storage Unit Storage Small Storage Unit Protection Utility Shielding Weapon EM Pulse Gun Energy Gun EM Pulse Gun Ballistic Gun Assault Rifle Build | -11 -10 -10 -10 -9 ------- Run | Yrd Mat Min Exi Min Slots Evolved . | . . . . . Power . | . . . . . Propulsion . | . . . . . Utility . | . . . . . Weapon . | . . . . . Parts Attached 15 | 6 . 1 5 3 Power 2 | 1 . . . 1 Engine 2 | 1 . . . 1 Core . | . . . . . Reactor . | . . . . . Propulsion 6 | 2 . . 4 . Treads . | . . . . . Leg 4 | 2 . . 2 . Wheel 2 | . . . 2 . Hover . | . . . . . Flight . | . . . . . Utility 3 | 1 . 1 1 . Device . | . . . . . Storage 2 | 1 . . 1 . Processor . | . . . . . Hackware . | . . . . . Protection 1 | . . 1 . . Artifact . | . . . . . Weapon 4 | 2 . . . 2 Energy Gun 3 | 2 . . . 1 Energy Cannon . | . . . . . Ballistic Gun 1 | . . . . 1 Ballistic Cannon . | . . . . . Launcher . | . . . . . Special Weapon . | . . . . . Impact Weapon . | . . . . . Slashing Weapon . | . . . . . Piercing Weapon . | . . . . . Special Melee Weapon . | . . . . . Unidentified Prototypes 1 | . . . 1 . Parts Lost 6 | . . . . 6 Power 2 | . . . . 2 Propulsion . | . . . . . Utility . | . . . . . Weapon 4 | . . . . 4 Highest Loss Streak 6 | . . . . 6 To Critical Strikes . | . . . . . Average Backups 7 | 3 6 7 7 7 Power . | . 1 1 1 . Propulsion 4 | 1 4 4 4 5 Utility . | . . . . . Weapon 1 | . 1 2 2 1 Tool/Special . | . . . . . Unused Backups 2 | . . . 1 1 Power . | . . . . . Propulsion 2 | . . . 1 1 Utility . | . . . . . Weapon . | . . . . . Tool/Special . | . . . . . Average Slot Usage (%) 95 | . 85 90 100 98 Engine 13 | . 14 14 14 12 Leg 22 | . 28 28 17 28 Wheel 5 | . . . 10 . Storage 14 | . 14 14 14 14 Protection 9 | . . 5 14 14 Energy Gun 27 | . 28 28 28 25 Peak Build Rating 25 | 6 6 7 25 25 Average Rating 12 | 4 6 6 16 24 On Entrance 8 | . 6 6 7 25 Naked Turns . | . . . . . Heaviest Build 30 | 14 14 15 30 30 Greatest Support 60 | 20 20 20 60 60 Greatest Overweight (x) . | . . . . . Average Overweight (x) . | . . . . . Largest Inventory Capacity 15 | 8 8 8 15 15 Average Capacity 8 | 6 8 8 8 15 Most Carried 8 | 6 7 8 8 8 Average Carried 7 | 3 6 7 7 7 Final Capacity 15 | 8 8 8 15 15 Final Carried 8 | 6 7 7 8 5 Class Distribution -------------------- 100% | Mutant Dominant Class ---------------- Mutant | -10/Materials Mutant | -10/Mines Mutant | -10/Exiles Mutant | -9/Mines Resources | -11 -10 -10 -10 -9 ----------- Run | Yrd Mat Min Exi Min Matter Collected 293 | 243 17 . . 33 Remotely . | . . . . . Salvage Created 47 | . 47 . . . Parts 4 | . 4 . . . Haulers Intercepted . | . . . . . Recyclers Shooed . | . . . . . Parts Field Recycled . | . . . . . Retrieved Matter . | . . . . . Parts Self-Destructed . | . . . . . Prevented . | . . . . . Kills | -11 -10 -10 -10 -9 ------- Run | Yrd Mat Min Exi Min Combat Hostiles Destroyed 3 | . 3 . . . Guns 3 | . 3 . . . Classes Destroyed 1 | . 1 . . . Swarmer 3 | . 3 . . . Best Kill Streak 3 | . 3 . . . Combat Bots Only 3 | . 3 . . . Max Kills in Single Turn 2 | . 2 . . . Gunslinging 1 | . 1 . . . Exploded . | . . . . . Melee . | . . . . . Uniques/NPCs Destroyed . | . . . . . Combat | -11 -10 -10 -10 -9 -------- Run | Yrd Mat Min Exi Min Hostile Shots Fired 97 | . 7 . . 90 Missed 23 | . . . . 23 Hits 74 | . 7 . . 67 Melee 4 | . . . . 4 Projectile 70 | . 7 . . 63 AOE 2 | . . . . 2 Critical Strikes 1 | . . . . 1 Actively Blocked 1 | . . . . 1 Damage Taken 1064 | . 51 . . 1013 Core 274 | . . . . 274 Absorbed by Shields . | . . . . . Redirected to Shielding 19 | . . . . 19 Core Remaining (%) 100 | 100 . . . . Volleys Fired 6 | . 4 . . 2 Largest 2 | . 2 . . 2 Hottest 90 | . 90 . . 90 Shots Fired 12 | . 8 . . 4 Gun 12 | . 8 . . 4 Cannon . | . . . . . Launcher . | . . . . . Special . | . . . . . Kinetic . | . . . . . Thermal 6 | . 4 . . 2 Explosive . | . . . . . Electromagnetic 6 | . 4 . . 2 Robot Hit Streak 2 | . 2 . . 2 Robot Miss Streak 2 | . 2 . . 1 Penetration Max . | . . . . . Secondary Targets 1 | . 1 . . . Max Gunslinging Chain 1 | . 1 . . . Shots Hit Robots 5 | . 3 . . 2 Core Hits 7 | . 3 . . 4 Critical Kills . | . . . . . Critical Parts Destroyed . | . . . . . Critical Strikes . | . . . . . Melee Attacks . | . . . . . Impact . | . . . . . Slashing . | . . . . . Piercing . | . . . . . Sneak Attacks . | . . . . . Combat Hostiles . | . . . . . Follow-up Attacks . | . . . . . Damage Inflicted 82 | . 33 . . 49 Guns 56 | . 33 . . 23 Cannons . | . . . . . Explosions . | . . . . . Melee . | . . . . . Ramming 26 | . . . . 26 Kinetic . | . . . . . Thermal 24 | . 12 . . 12 Explosive . | . . . . . Electromagnetic 32 | . 21 . . 11 Impact . | . . . . . Slashing . | . . . . . Piercing . | . . . . . Highest Corruption . | . . . . . Average Corruption . | . . . . . Corruption Purged . | . . . . . Corruption Blocked . | . . . . . Overload Shots . | . . . . . Overflow Damage . | . . . . . Projectiles . | . . . . . Explosions . | . . . . . Melee . | . . . . . Knockbacks . | . . . . . Impact . | . . . . . Kinetic . | . . . . . Secondary . | . . . . . Self-Inflicted Damage . | . . . . . Shots . | . . . . . Rammed . | . . . . . Targets Rammed 8 | . . . . 8 Kicked 8 | . . . . 8 Crushed . | . . . . . Highest Temperature 120 | . 120 . . 30 Average Temperature 47 | . 62 . . 14 Received Heat Transfer 100 | . . . . 100 Siege Activations . | . . . . . Martial Activations . | . . . . . Shielding Activations . | . . . . . Robots Disrupted . | . . . . . Combat Hostiles . | . . . . . Robots Corrupted . | . . . . . Combat Hostiles . | . . . . . Parts Fried . | . . . . . Impact Corruptions . | . . . . . Robots Melted . | . . . . . Combat Hostiles . | . . . . . Parts Melted . | . . . . . Heat Transferred 74 | . 37 . . 37 Parts Sabotaged . | . . . . . Parts Stolen . | . . . . . Parts Stripped . | . . . . . Power Chain Reactions . | . . . . . Alert | -11 -10 -10 -10 -9 ------- Run | Yrd Mat Min Exi Min Maximum Alert Level . | . . . . . Low Security (%) 100 | 100 100 100 . 100 Level 1 . | . . . . . Level 2 . | . . . . . Level 3 . | . . . . . Level 4 . | . . . . . Level 5 . | . . . . . High Security . | . . . . . Max Security . | . . . . . Peak Influence 70 | . 70 . . . Initial . | . . . . . Average 7 | . 19 . . . Influence Increases 70 | . 70 . . . Destroy 0b10 Robot/C 60 | . 60 . . . Destroy Leader 10 | . 10 . . . Influence Decreases 70 | . 70 . . . Time Decay 70 | . 70 . . . Squads Dispatched . | . . . . . Investigation . | . . . . . Extermination . | . . . . . Reinforcement . | . . . . . Assault . | . . . . . Garrison . | . . . . . Intercept . | . . . . . Searches Triggered . | . . . . . Construction Impeded . | . . . . . Haulers Reinforced . | . . . . . Active Scanning Responses . | . . . . . Cargo Convoy Interrupts . | . . . . . Stealth | -11 -10 -10 -10 -9 --------- Run | Yrd Mat Min Exi Min Distress Signals . | . . . . . Communications Jammed . | . . . . . Distress Signals . | . . . . . Times Spotted 19 | . 6 . . 13 Peak Tracking Total 11 | . 3 . . 11 Tactical Retreats . | . . . . . Traps | -11 -10 -10 -10 -9 ------- Run | Yrd Mat Min Exi Min Traps Triggered . | . . . . . Indirectly . | . . . . . Trap Hack Attempts . | . . . . . Triggered . | . . . . . Disarmed . | . . . . . Reprogrammed . | . . . . . Reused . | . . . . . Traps Extracted . | . . . . . Installed . | . . . . . Triggered . | . . . . . Machines | -11 -10 -10 -10 -9 ---------- Run | Yrd Mat Min Exi Min Machines Disabled . | . . . . . Max in Single Turn . | . . . . . Machines Repaired . | . . . . . Machines Dismantled . | . . . . . Machines Sabotaged . | . . . . . Overloaded Fab Kills . | . . . . . Hacking | -11 -10 -10 -10 -9 --------- Run | Yrd Mat Min Exi Min Machines Accessed 5 | . 1 . 4 . Terminals 1 | . 1 . . . Fabricators . | . . . . . Repair Stations . | . . . . . Recycling Units . | . . . . . Scanalyzers . | . . . . . Garrison Access . | . . . . . Total Hacks 50 | . 1 . 49 . Successful 49 | . . . 49 . Failed 1 | . 1 . . . Catastrophic . | . . . . . Database Lockouts . | . . . . . Manual 2 | . . . 2 . Terminals 1 | . 1 . . . Fabricators . | . . . . . Repair Stations . | . . . . . Recycling Units . | . . . . . Scanalyzers . | . . . . . Garrison Access . | . . . . . Terminal Hacks 49 | . . . 49 . Record 49 | . . . 49 . Fabricator Hacks . | . . . . . Repair Station Hacks . | . . . . . Recycling Unit Hacks . | . . . . . Scanalyzer . | . . . . . Garrison Access Hacks . | . . . . . Unauthorized Hacks . | . . . . . Terminals . | . . . . . Fabricators . | . . . . . Repair Stations . | . . . . . Recycling Units . | . . . . . Scanalyzers . | . . . . . Garrison Access . | . . . . . Data Cores Recovered . | . . . . . Used . | . . . . . Hacking Detections 1 | . 1 . . . Full Trace Events . | . . . . . Feedback Events . | . . . . . Feedback Blocked . | . . . . . Robot Schematics Acquired . | . . . . . Robots Built . | . . . . . Authchips . | . . . . . Time . | . . . . . Total Robot Build Rating . | . . . . . Part Schematics Acquired . | . . . . . Parts Built . | . . . . . Authchips . | . . . . . Time . | . . . . . Total Part Build Rating . | . . . . . Parts Repaired . | . . . . . Time . | . . . . . Parts Recycled . | . . . . . Recycled Matter . | . . . . . Retrieved Matter . | . . . . . Retrieved Components . | . . . . . Parts Scanalyzed . | . . . . . Part Schematics Acquired . | . . . . . Parts Damaged . | . . . . . Bothacking | -11 -10 -10 -10 -9 ------------ Run | Yrd Mat Min Exi Min Used RIF Installer . | . . . . . Robots Hacked . | . . . . . Non-combat . | . . . . . Combat . | . . . . . Robot Hacks Applied . | . . . . . Relay Couplers Released . | . . . . . Fabnet Peak Effective % . | . . . . . Robots Rewired . | . . . . . Allies Hacked . | . . . . . Hacks Repelled . | . . . . . Allies | -11 -10 -10 -10 -9 -------- Run | Yrd Mat Min Exi Min Total Allies . | . . . . . Largest Group . | . . . . . Highest-Rated Group . | . . . . . Highest-Rated Ally . | . . . . . Total Orders . | . . . . . Ally Attacks . | . . . . . Total Damage . | . . . . . Kills . | . . . . . Allies Corrupted . | . . . . . Allies Melted . | . . . . . Intel | -11 -10 -10 -10 -9 ------- Run | Yrd Mat Min Exi Min Active Infowar (turns) . | . . . . . Robot Analysis Total . | . . . . . Derelict Logs Recovered . | . . . . . Drone Launches . | . . . . . Drone Recoveries . | . . . . . Exploration | -11 -10 -10 -10 -9 ------------- Run | Yrd Mat Min Exi Min Turns Passed 1296 | 71 233 215 683 94 Spaces Moved 1222 | 50 162 165 762 83 Core 10 | 10 . . . . Treads . | . . . . . Legs 889 | 40 162 165 439 83 Wheels 323 | . . . 323 . Hover . | . . . . . Flight . | . . . . . Fastest Speed 50 | 50 120 120 80 90 Average Speed 97 | 106 120 120 88 90 Slowest Speed 120 | 120 120 120 120 90 Overloaded Moves . | . . . . . Propulsion Burnouts . | . . . . . Robots Hopped . | . . . . . Potential Cave-ins . | . . . . . Cave-ins Triggered . | . . . . . Exploration Rate (%) 40 | 5 30 55 93 19 Regions Visited 4 Branch Regions 3 Pre-discovered Areas 1 | . . . 1 . Known Exits Taken . | . . . . . Unknown Exits Taken 4 | 1 1 1 1 . Scrap Searched 1 | . . 1 . . Spaces Dug . | . . . . . Terrain Destroyed . | . . . . . Melee . | . . . . . Projectile . | . . . . . AOE . | . . . . . Terrain Rammed . | . . . . . Walls Destroyed . | . . . . . Machines Disabled . | . . . . . Actions | -11 -10 -10 -10 -9 --------- Run | Yrd Mat Min Exi Min Total 1312 | 68 192 182 772 98 Wait 45 | 1 26 16 . 2 Move 1218 | 49 161 164 761 83 Hop . | . . . . . Pick Up 16 | 12 1 1 2 . Fast Attach . | . . . . . Attach 10 | 6 . 1 . 3 Detach . | . . . . . Swap 5 | . . . 5 . Drop 2 | . . . 2 . Fire 6 | . 4 . . 2 Melee . | . . . . . Ram . | . . . . . Kick 8 | . . . . 8 Crush . | . . . . . Escape Stasis . | . . . . . Rewire 2 | . . . 2 . Trap . | . . . . . Miscellaneous . | . . . . . Route ------- -11/Scrapyard -10/Materials -10/Mines (discovered 2 exits: [*Mat] / *Exi) -10/Exiles -9/Mines History --------- Turn | Location | Event 4 | -11/Scrapyard | Discovered new exit (range 15) 72 | -11/Scrapyard | Entered Materials 106 | -10/Materials | Discovered new exit (range 16) 174 | -10/Materials | Met 8R-AWN 301 | -10/Materials | Build established: Mutant 305 | -10/Materials | Entered Mines 307 | -10/Mines | Followed 8R-AWN into the Mines 495 | -10/Mines | Discovered new exit (range 8) 515 | -10/Mines | Discovered new exit (range 5) 520 | -10/Mines | Entered Exiles 549 | -10/Exiles | Welcomed by 8R-AWN 572 | -10/Exiles | Met EX-HEX 622 | -10/Exiles | Met EX-DEC 640 | -10/Exiles | Learned location of Zion (-7) 670 | -10/Exiles | Discovered new exit (range 12) 737 | -10/Exiles | Met EX-BIN 810 | -10/Exiles | Aligned with FarCom system 811 | -10/Exiles | Given EX-Vault access code 849 | -10/Exiles | Opened EX-Vault 852 | -10/Exiles | Found Prototype Leg 854 | -10/Exiles | Identified Potential Leg 856 | -10/Exiles | Found Potential Leg 876 | -10/Exiles | Warned to stay clear of 0b10 Research branches 944 | -10/Exiles | Visited The Gauntlet 1203 | -10/Exiles | Left Exiles lab with Potential Leg 1203 | -10/Exiles | Entered Mines 1241 | -9/Mines | Assembled infested the area 1244 | -9/Mines | Met a Derelict bent on vengeance 1281 | -9/Mines | Core integrity fell below 50% 1292 | -9/Mines | Core integrity fell below 20% 1297 | -9/Mines | Destroyed by D-53 Grenadier with Mini Grenade Launcher Last Messages --------------- EM Pulse Gun destroyed. The unstable cave ceiling collapses. as-67395 destroyed. Acquired 15 matter. Acquired 18 matter. The unstable cave ceiling collapses. Kicked as-99716 out of the way. Kicked as-99716. Sml. Laser destroyed. Kicked as-99716. Kicked as-99716 out of the way. as-60544 destroyed. as-63105 destroyed. as-26443 destroyed. Assault Rifle destroyed. as-77958 destroyed. as-90583 destroyed. Lgt. Ion Engine destroyed. as-99716 destroyed. The unstable cave ceiling collapses. Map ----- +----------------------------------------------------+ | ???????????????????# ###?????????????? | | ???????????????????## ##????????????? | | ????????????????????## #????????????? | | ?????????????????????## #????????????? | | ??????????????????????### ########?????? | | ????????????????????????# #?????? | | ????????????????????????######## #?????? | | ???????????????????????????????# ###???? | | ???????????????????????????????# "#???? | | ???????????????????????????????###%#???? | | ????????????????????????????????## ###?? | | ???????????????????????????????## ##? | | ??????????????????????????????## ## | | ?????????????????????????????## # ? | | ?????????????????????????????# # # | | ?????????????????????????????# # # | | ?????????????????????????????## # | | ?????????????????????????????# # # | | ??????????????????????????????# ? | | ??????????????????????????????# #? | | ?????????????????????????????# ##? | | ??????????????????????####### #? | | ??????????????????????# dd #? | | ?????????????????????## a ##? | | ?????????????????????# a ##?? | | ?????????????????????## @ # % #??? | | ??????????????????????# ## #??? | | ??????????????????????# =##??## # ##??? | | ??????????????????????## #??????#?????? | | ???????????????????????# #????????????? | | ???????????????????????# #????????????? | | ???????????????????????# #????????????? | | ???????????????????????a #????????????? | | ??????????????????????? #????????????? | | ???????????????????????###?????????????? | | ???????????????????????????????????????? | | ???????????????????????????????????????? | | ???????????????????????????????????????? | | ???????????????????????????????????????? | | ???????????????????????????????????????? | | ???????????????????????????????????????? | | ???????????????????????????????????????? | | ???????????????????????????????????????? | | ???????????????????????????????????????? | | ???????????????????????????????????????? | | ???????????????????????????????????????? | | ???????????????????????????????????????? | | | | | | | +----------------------------------------------------+ Best States ------------- Heat Dissipation 25 Energy Generation 10 Energy Capacity 250 Matter Stores 300 Matter Capacity 300 Sight Range 16 Terrain Scan Density 10 Utility Shielding 33 Evasion (%) 57 Item Schematics ----------------- None Robot Schematics ------------------ None Fabricated ------------ Nothing Repaired ---------- Nothing Alien Tech Used ----------------- None Achievements -------------- None Challenges ------------ None Game ------ Seed CargoNanofilamentsLegs Manual? 0 Play Time 00:33:37 Cumulative 5.0 hours Start 2025.10.03 @ 18:02:44 End 2025.10.04 @ 21:24:29 Sessions 3 Manual Loads 0 Difficulty Rogue Special Mode None Game No. 5 Rogue 5 Adventurer 0 Explorer 0 Win Type - Total 0 Types 0/0/0/0/0/0/0/0/0/0 Lore% 6 Gallery% 7 Achievement% 6 Wizard Run 0 Options --------- Layout 1 ASCII 0 Keyboard 0 Movement Mouse Keybinds 0 Fullscreen 1 Font 24/Smallcaps Map View 50x35 Zoom Use 0% Tactical HUD 0 Map Filters NONE Filters NONE Steam 0 RUN: b071e0bc-d5c4-4d87-b209-e0e519be7be2